bitfinex/quotes_SOLUSD_20260120
["timestamp","ask_amount","ask_price","bid_price","bid_amount"]
[1768870723872,4.07243682,133.67,133.65,1.05170519]
[1768870724167,3.00997862,133.67,133.65,1.05170519]
[1768870726354,4.07243682,133.67,133.65,1.05170519]
[1768870727380,11.55367476,133.67,133.64,1.05170519]
[1768870727544,8.54369614,133.67,133.64,1.05170519]
[1768870731773,11.55367476,133.67,133.64,1.05170519]
[1768870742077,8.54369614,133.67,133.64,1.05170519]
[1768870742284,11.55367476,133.67,133.64,1.05170519]
[1768870742583,1.06534462,133.66,133.63,4.09643356]
[1768870742973,1.06534462,133.66,133.63,3.00997862]
[1768870743170,1.06534462,133.66,133.64,1.08645494]
[1768870743676,11.55656118,133.67,133.64,1.08645494]
[1768870745463,1.06534462,133.66,133.64,1.08645494]
[1768870746079,1.06534462,133.66,133.63,1.08645494]
[1768870747385,11.55726065,133.66,133.63,1.08645494]
[1768870747882,1.06534462,133.66,133.63,1.08645494]
[1768870749181,4.07532324,133.65,133.61,8.57066156]
[1768870749484,1.06534462,133.64,133.62,1.08645494]
[1768870749779,4.07532324,133.65,133.62,1.08645494]
[1768870750586,1.06534462,133.65,133.62,1.08645494]
[1768870750886,4.07532324,133.65,133.62,1.08645494]
[1768870753186,1.06534462,133.65,133.62,1.08645494]
[1768870753761,4.07532324,133.65,133.62,1.08645494]
[1768870753965,1.06534462,133.65,133.62,1.08645494]
[1768870755669,4.07532324,133.66,133.63,1.08645494]
[1768870756486,19.76743719,133.68,133.63,1.08645494]
[1768870756690,1.06534462,133.67,133.64,1.08645494]
[1768870756984,4.07532324,133.67,133.64,1.08645494]
[1768870757177,4.07532324,133.66,133.64,1.08645494]
[1768870757491,1.06534462,133.66,133.64,1.05645494]
[1768870757669,4.07532324,133.66,133.62,3.00997862]
[1768870758989,4.0767197,133.66,133.62,3.01137508]
[1768870759490,4.0767197,133.66,133.63,1.08645494]
[1768870760287,1.06534462,133.66,133.63,1.08645494]
[1768870761683,8.54697981,133.67,133.63,1.08645494]
[1768870761994,11.55835489,133.67,133.64,1.08645494]
[1768870766372,8.54697981,133.67,133.64,1.08645494]
[1768870766585,11.55835489,133.67,133.64,1.08645494]
[1768870769379,7.48163519,133.67,133.64,1.08645494]
[1768870771393,1.09826537,133.65,133.62,1.06559548]
[1768870771579,1.09826537,133.63,133.61,1.06559548]
[1768870771788,1.09826537,133.66,133.61,1.06559548]
[1768870771984,3.01137508,133.65,133.62,1.06559548]
[1768870772184,4.10964045,133.65,133.62,1.06559548]
[1768870773194,1.09826537,133.64,133.62,1.06559548]
[1768870779099,3.01137508,133.65,133.62,1.06559548]
[1768870780603,11.59143945,133.66,133.62,1.06559548]
[1768870784601,11.59143945,133.66,133.63,1.13668102]
[1768870787730,1.09493955,133.74,133.66,1.13668102]
[1768870788022,4.10631463,133.74,133.69,4.1480561]
[1768870788218,8.67114125,133.76,133.73,1.13668102]
[1768870788611,3.01137508,133.75,133.67,1.13668102]
[1768870788814,7.5762017,133.76,133.7,1.13668102]
[1768870788815,4.10631463,133.74,133.7,1.13668102]
[1768870789015,1.06493699,133.73,133.7,1.13668102]
[1768870790602,4.07631207,133.73,133.7,1.13668102]
[1768870790805,3.01137508,133.72,133.69,1.13668102]
[1768870791006,1.09493955,133.72,133.69,1.13668102]
[1768870795032,1.04493063,133.72,133.69,1.13668102]
[1768870795221,0.9951312,133.72,133.69,1.13668102]
[1768870795406,8.47375601,133.72,133.69,1.13668102]
[1768870795612,11.48513109,133.72,133.69,1.13668102]
[1768870797528,1.15388457,133.71,133.67,1.19045284]
[1768870798031,4.16525965,133.71,133.67,1.19045284]
[1768870799026,1.15388457,133.71,133.67,1.19045284]
[1768870801139,1.15388457,133.69,133.66,1.19045284]
[1768870801322,4.16289549,133.69,133.66,1.19045284]
[1768870801718,1.09388458,133.69,133.66,1.19045284]
[1768870801937,3.00901092,133.68,133.64,1.19045284]
[1768870803347,3.00901092,133.69,133.65,1.19045284]
[1768870803724,4.16289549,133.69,133.65,1.19045284]
[1768870804039,4.16289549,133.68,133.65,1.19045284]
[1768870804345,11.64348878,133.68,133.65,1.19045284]
[1768870805643,1.15388457,133.69,133.65,1.19045284]
[1768870805841,1.15388457,133.7,133.65,1.19045284]
[1768870806040,3.00901092,133.69,133.66,1.19045284]
[1768870807130,4.16289549,133.7,133.66,1.19045284]
[1768870807558,11.64244122,133.7,133.66,1.19045284]
[1768870808348,11.58244123,133.7,133.66,1.19045284]
[1768870808957,7.47906822,133.71,133.67,1.19045284]
[1768870809153,10.48807914,133.71,133.67,1.19045284]
[1768870810355,11.64196371,133.71,133.67,1.19045284]
[1768870810666,3.00901092,133.7,133.67,1.19045284]
[1768870810964,1.15388457,133.68,133.65,8.67257334]
[1768870811151,1.15388457,133.67,133.64,1.19045284]
[1768870811552,4.16289549,133.68,133.64,1.19045284]
[1768870812063,7.47962136,133.7,133.65,1.19045284]
[1768870812064,3.00901092,133.69,133.65,1.19045284]
[1768870812240,11.64251685,133.7,133.65,1.19045284]
[1768870813272,1.15388457,133.69,133.65,1.19045284]
[1768870813762,4.16289549,133.69,133.65,1.19045284]
[1768870814670,11.6429289,133.69,133.65,1.19045284]
[1768870814851,11.58292891,133.69,133.65,1.19045284]
[1768870815875,8.57391799,133.69,133.65,1.19045284]
[1768870816057,11.58292891,133.69,133.65,1.19045284]
[1768870816761,18.69792937,133.71,133.66,1.19045284]
[1768870816762,7.47967062,133.7,133.66,1.19045284]
[1768870816966,11.64256611,133.7,133.66,1.19045284]
[1768870817165,4.16289549,133.7,133.66,1.19045284]
[1768870817578,8.63298013,133.71,133.66,1.19045284]
[1768870817756,11.64199105,133.71,133.67,1.19045284]
[1768870819458,4.16289549,133.7,133.67,1.19045284]
[1768870820972,4.16360163,133.7,133.67,1.19045284]
[1768870821156,11.64305352,133.7,133.67,1.19045284]
[1768870821352,1.15388457,133.68,133.65,1.19045284]
[1768870821558,4.16360163,133.69,133.66,1.19045284]
[1768870823867,3.00971706,133.69,133.66,1.19045284]
[1768870824074,4.16555031,133.7,133.66,1.19045284]
[1768870824662,11.64502237,133.7,133.66,1.19045284]
[1768870825381,8.63530531,133.7,133.66,1.19045284]
[1768870825587,11.64502237,133.7,133.66,1.19045284]
[1768870826279,1.15583325,133.68,133.65,8.68955186]
[1768870826470,1.15583325,133.68,133.65,1.20737781]
[1768870826670,4.16555031,133.69,133.65,1.20737781]
[1768870826986,1.15583325,133.68,133.65,1.20737781]
[1768870827562,1.15583325,133.67,133.63,1.20737781]
[1768870827767,4.16555031,133.67,133.63,1.20737781]
[1768870828281,4.16555031,133.67,133.63,8.6906681]
[1768870828484,4.16555031,133.67,133.64,1.20737781]
[1768870828788,7.48072458,133.68,133.64,1.20737781]
[1768870828789,4.16555031,133.68,133.64,1.20737781]
[1768870829403,11.64627127,133.68,133.64,1.20737781]
[1768870830176,8.63655421,133.68,133.64,1.20737781]
[1768870830383,4.16555031,133.67,133.64,1.20737781]
[1768870832386,3.00971706,133.67,133.64,1.20737781]
[1768870832759,1.15583325,133.68,133.64,7.48253471]
[1768870832963,1.15583325,133.72,133.66,3.00971706]
[1768870833183,4.16555031,133.71,133.67,1.20737781]
[1768870834183,11.6445798,133.71,133.67,1.20737781]
[1768870837902,3.00971706,133.7,133.67,1.20737781]
[1768870838308,11.64513384,133.7,133.67,1.20737781]
[1768870838602,4.16555031,133.7,133.67,1.20737781]
[1768870840380,1.15583325,133.7,133.67,1.20737781]
[1768870840581,4.16555031,133.7,133.67,1.20737781]
[1768870840999,4.10555032,133.7,133.67,1.20737781]
[1768870842821,1.03583327,133.7,133.67,1.20737781]
[1768870846218,10.48883276,133.71,133.67,3.00971706]
[1768870846411,4.2156026,133.71,133.68,1.31318954]
[1768870848719,11.69465896,133.71,133.68,1.31318954]
[1768870849505,10.48877342,133.71,133.68,1.31318954]
[1768870850215,11.69465896,133.71,133.68,1.31318954]
[1768870851029,11.69410575,133.72,133.68,1.31318954]
[1768870851405,11.69353587,133.73,133.69,1.31318954]
[1768870851611,8.68381881,133.73,133.69,1.31318954]
[1768870851925,11.69353587,133.73,133.69,1.31318954]
[1768870852422,11.69353587,133.73,133.7,1.31318954]
[1768870852747,1.20588554,133.7,133.65,1.31318954]
[1768870852906,1.20588554,133.7,133.67,1.31318954]
[1768870853106,1.20588554,133.7,133.67,4.3229066]
[1768870853627,1.20588554,133.7,133.68,1.30016373]
[1768870853819,4.23308296,133.71,133.68,1.30016373]
[1768870854017,3.00971706,133.72,133.68,1.30016373]
[1768870854232,4.23308296,133.72,133.68,1.30016373]
[1768870857325,1.2233659,133.72,133.69,1.30016373]
[1768870861031,7.47796241,133.73,133.7,1.30016373]
[1768870861225,8.70079882,133.74,133.7,1.30016373]
[1768870861428,11.71051588,133.74,133.7,1.30016373]
[1768870862247,4.23308296,133.73,133.7,1.30016373]
[1768870862540,11.71106892,133.73,133.7,1.30016373]
[1768870865439,1.2233659,133.72,133.69,1.30016373]
[1768870865636,4.23308296,133.72,133.69,1.30016373]
[1768870866232,1.2233659,133.71,133.67,1.30016373]
[1768870866626,4.23308296,133.71,133.67,4.30988079]
[1768870866923,4.23308296,133.71,133.68,1.30016373]
[1768870867951,4.23308296,133.7,133.67,1.30016373]
[1768870868748,11.71304457,133.7,133.67,1.30016373]
[1768870868938,1.2233659,133.68,133.65,1.30016373]
[1768870869477,4.23308296,133.68,133.65,1.30016373]
[1768870869657,1.2233659,133.67,133.64,1.30016373]
[1768870869950,1.16336589,133.67,133.64,1.30016373]
[1768870870342,3.00971706,133.65,133.61,8.7844131]
[1768870870643,3.00971706,133.65,133.61,1.30016373]
[1768870871151,3.00971706,133.64,133.61,1.30016373]
[1768870871733,3.00971706,133.64,133.6,1.30016373]
[1768870871934,4.23308296,133.63,133.6,1.30016373]
[1768870874056,3.00971706,133.62,133.6,1.30016373]
[1768870874432,1.2233659,133.63,133.6,1.30016373]
[1768870874634,2.94971705,133.62,133.6,1.30016373]
[1768870875535,4.17308295,133.62,133.59,1.30016373]
[1768870875736,3.00971706,133.6,133.57,1.30016373]
[1768870875937,1.2233659,133.61,133.57,1.30016373]
[1768870876237,4.23308296,133.61,133.57,1.30016373]
[1768870876554,1.2233659,133.61,133.57,1.30016373]
[1768870876755,4.23308296,133.61,133.57,1.30016373]
[1768870877552,3.00971706,133.6,133.57,1.30016373]
[1768870878246,4.23308296,133.61,133.58,1.30016373]
[1768870879257,1.2233659,133.61,133.58,1.30016373]
[1768870879458,4.23308296,133.61,133.58,1.30016373]
[1768870880440,7.48445271,133.62,133.59,1.30016373]
[1768870880441,1.2233659,133.62,133.59,1.30016373]
[1768870880636,11.71683538,133.63,133.59,1.30016373]
[1768870880841,1.2233659,133.62,133.59,1.30016373]
[1768870881344,4.23308296,133.62,133.59,1.30016373]
[1768870881549,4.17308291,133.62,133.59,1.30016373]
[1768870882864,4.17668482,133.62,133.59,1.30016373]
[1768870884743,11.66060308,133.62,133.59,1.30016373]
[1768870884943,11.66060308,133.62,133.58,1.27901849]
[1768870884944,4.33495153,133.61,133.58,1.27901849]
[1768870886761,3.01331897,133.6,133.57,1.27901849]
[1768870888546,1.32163256,133.61,133.57,1.27901849]
[1768870888753,3.01331897,133.6,133.57,1.27901849]
[1768870889565,4.33495153,133.61,133.58,1.27901849]
[1768870889751,1.32163256,133.61,133.58,1.27901849]
[1768870889952,4.33495153,133.61,133.58,1.27901849]
[1768870891262,3.01331897,133.6,133.58,1.27901849]
[1768870891642,4.33495153,133.6,133.57,1.27901849]
[1768870891857,1.32163256,133.6,133.57,1.27901849]
[1768870892348,11.81947929,133.61,133.57,1.27901849]
[1768870892545,4.33495153,133.61,133.57,1.27901849]
[1768870896371,3.01331897,133.6,133.57,1.27901849]
[1768870896757,4.33495153,133.61,133.58,1.27901849]
[1768870897070,7.48416275,133.62,133.58,1.27901849]
[1768870897373,10.49748172,133.62,133.58,1.27901849]
[1768870897748,11.81911428,133.62,133.58,1.27901849]
[1768870898176,4.33495153,133.62,133.58,1.27901849]
[1768870898762,11.81891704,133.62,133.58,1.27901849]
[1768870899494,3.01331897,133.61,133.58,1.27901849]
[1768870899674,1.32163256,133.6,133.57,8.76562897]
[1768870901079,4.33495153,133.6,133.57,8.76562897]
[1768870903782,1.32163256,133.6,133.57,8.76562897]
[1768870904203,4.29670285,133.58,133.56,0.2]
[1768870904499,1.28338388,133.59,133.56,1.54164256]
[1768870904663,1.28338388,133.59,133.56,9.02887008]
[1768870904864,4.29670285,133.6,133.57,1.34164256]
[1768870905453,3.01331897,133.59,133.57,1.34164256]
[1768870906280,4.29670285,133.59,133.56,0.2]
[1768870906961,4.29670285,133.59,133.56,1.54164256]
[1768870907663,3.01331897,133.59,133.56,1.54164256]
[1768870908265,8.76858627,133.6,133.56,1.54164256]
[1768870908472,4.29670285,133.59,133.56,1.54164256]
[1768870910681,1.28338388,133.6,133.56,1.54164256]
[1768870910894,27.47756517,133.62,133.56,1.54164256]
[1768870911078,3.01331897,133.6,133.56,1.54164256]
[1768870911273,4.29670285,133.61,133.57,1.34164256]
[1768870911470,4.29670285,133.6,133.57,1.34164256]
[1768870912885,11.78183171,133.6,133.57,1.34164256]
[1768870913091,4.24930831,133.59,133.56,1.5238468]
[1768870914088,3.01331897,133.59,133.56,1.5238468]
[1768870915195,10.49909739,133.59,133.56,1.5238468]
[1768870915387,11.73508673,133.59,133.56,1.5238468]
[1768870916581,11.73508673,133.59,133.56,0.2]
[1768870916773,1.23598934,133.58,133.56,0.2]
[1768870916977,11.73551624,133.58,133.56,0.2]
[1768870917187,11.73551624,133.58,133.54,0.2]
[1768870917188,1.23598934,133.57,133.54,0.2]
[1768870917389,4.11606203,133.56,133.54,0.2]
[1768870917606,4.05606204,133.56,133.54,0.2]
[1768870918285,3.01331897,133.55,133.53,1.5238468]
[1768870920294,11.54350491,133.56,133.53,1.5238468]
[1768870921375,4.06247596,133.55,133.53,0.2]
[1768870922199,3.01331897,133.55,133.53,0.2]
[1768870922500,10.5011657,133.55,133.53,0.2]
[1768870924098,3.01331897,133.54,133.53,0.2]
[1768870924293,8.54010068,133.55,133.53,0.2]
[1768870924486,3.01331897,133.54,133.52,0.2]
[1768870924690,4.06709553,133.53,133.51,0.2]
[1768870924897,4.06709553,133.52,133.49,1.5238468]
[1768870925071,3.01331897,133.51,133.49,1.5238468]
[1768870925479,4.06859989,133.5,133.48,0.2]
[1768870925693,1.05528092,133.5,133.48,0.2]
[1768870925898,4.06859989,133.5,133.48,0.2]
[1768870926386,1.0567915,133.52,133.48,1.5238468]
[1768870926595,3.01331897,133.51,133.48,1.5238468]
[1768870931084,4.07591549,133.49,133.48,0.2]
[1768870931296,4.07591549,133.49,133.47,0.2]
[1768870931497,11.567341,133.49,133.47,0.2]
[1768870931710,11.567341,133.49,133.46,1.5238468]
[1768870931711,3.87732242,133.48,133.46,0.2]
[1768870932018,3.87732242,133.47,133.44,1.5238468]
[1768870932306,3.68794054,133.47,133.44,1.5238468]
[1768870932501,3.38982954,133.47,133.44,1.5238468]
[1768870933386,0.37651057,133.47,133.44,1.5238468]
[1768870933585,3.38982954,133.47,133.44,1.5238468]
[1768870934003,7.86905357,133.47,133.44,0.2]
[1768870934305,26.21612216,133.51,133.45,1.3238468]
[1768870934503,3.01331897,133.48,133.45,1.3238468]
[1768870935310,3.20224252,133.46,133.44,0.2]
[1768870936022,3.01331897,133.46,133.44,1.5238468]
[1768870936188,3.20224252,133.47,133.44,1.5238468]
[1768870936587,3.01331897,133.46,133.44,1.5238468]
[1768870936994,3.20224252,133.47,133.44,1.5238468]
[1768870937391,0.18892355,133.47,133.44,1.5238468]
[1768870937601,0.19547821,133.55,133.46,1.3238468]
[1768870937794,3.20879718,133.52,133.48,4.33716577]
[1768870938098,0.19547821,133.52,133.48,4.33716577]
[1768870938308,16.59547821,133.52,133.48,1.3238468]
[1768870938610,16.59547821,133.52,133.48,4.33716577]
[1768870938804,0.19868844,133.5,133.46,1.3238468]
[1768870938989,3.21200741,133.5,133.46,1.3238468]
[1768870939492,3.21518466,133.51,133.47,4.33716577]
[1768870939698,3.01331897,133.51,133.48,1.3238468]
[1768870939991,27.10485758,133.52,133.48,1.3238468]
[1768870940192,24.09153861,133.52,133.48,1.3238468]
[1768870940406,27.10485758,133.52,133.48,1.3238468]
[1768870941295,16.4,133.52,133.5,1.3238468]
[1768870942803,23.88960636,133.52,133.5,1.3238468]
[1768870943918,26.90681338,133.52,133.47,1.29415627]
[1768870944119,26.90681338,133.52,133.48,1.29415627]
[1768870944817,26.90681338,133.52,133.48,4.31136329]
[1768870945615,26.90681338,133.52,133.48,1.29415627]
[1768870946122,23.88960636,133.52,133.49,1.29415627]
[1768870947000,23.88960636,133.52,133.5,1.29415627]
[1768870947001,16.4,133.52,133.5,1.29415627]
[1768870947514,16.4,133.52,133.5,4.31136329]
[1768870948308,16.4,133.52,133.5,1.29415627]
[1768870953120,11.00141197,133.52,133.51,3.01720702]
[1768870953420,1.37206897,133.55,133.51,3.01720702]
[1768870953724,16.4,133.53,133.51,3.01720702]
[1768870954209,16.4,133.53,133.51,3.04717218]
[1768870956431,17.77206897,133.53,133.5,3.01720702]
[1768870957506,17.77206897,133.53,133.5,3.09084668]
[1768870959131,17.77206897,133.53,133.5,10.58141377]
[1768870959334,16.36361583,133.53,133.51,3.05359119]
[1768870960819,16.36361583,133.53,133.52,3.01720702]
[1768870961213,17.77206897,133.55,133.52,3.01720702]
[1768870961627,1.38754254,133.59,133.54,3.01720702]
[1768870961928,17.78754254,133.58,133.54,3.01720702]
[1768870962905,25.2737259,133.58,133.54,3.01720702]
[1768870963423,1.38754254,133.57,133.54,3.01720702]
[1768870964023,1.38754254,133.55,133.51,7.48992521]
[1768870964227,1.38754254,133.54,133.5,10.50753062]
[1768870964532,1.38754254,133.54,133.51,3.01720702]
[1768870965428,1.38754254,133.54,133.51,10.50718099]
[1768870967118,1.38754254,133.54,133.5,3.01720702]
[1768870967528,1.38754254,133.54,133.51,3.01720702]
[1768870968128,16.4,133.55,133.51,3.01720702]
[1768870968332,1.38754254,133.58,133.54,3.01720702]
[1768870968519,16.4,133.57,133.54,3.01720702]
[1768870968825,17.78754254,133.57,133.54,3.01720702]
[1768870970737,16.4,133.57,133.55,3.01720702]
[1768870971544,16.4,133.57,133.55,10.50485002]
[1768870971732,1.38754254,133.58,133.55,10.50485002]
[1768870972741,1.38754254,133.58,133.55,3.01720702]
[1768870973641,1.38754254,133.58,133.53,18.72108668]
[1768870973847,1.38754254,133.58,133.55,3.01720702]
[1768870974717,1.38754254,133.58,133.56,3.01720702]
[1768870974948,1.38754254,133.58,133.54,7.48813685]
[1768870975125,1.18033558,133.56,133.51,18.72431622]
[1768870975329,1.18033558,133.56,133.53,3.01720702]
[1768870975836,1.18033558,133.56,133.53,10.50614465]
[1768870977643,1.18033558,133.56,133.51,18.72431622]
[1768870977943,1.18033558,133.56,133.53,3.01720702]
[1768870978960,17.56033558,133.56,133.53,10.5061519]
[1768870981748,17.56033558,133.56,133.51,18.72431622]
[1768870982067,17.56033558,133.56,133.53,3.01720702]
[1768870983246,1.18033558,133.58,133.55,3.01720702]
[1768870983423,1.18033558,133.58,133.56,3.01720702]
[1768870983621,14.56033556,133.59,133.54,0.76276472]
[1768870983820,3.01720702,133.57,133.52,11.26915671]
[1768870984019,22.04618763,133.59,133.53,11.26884514]
[1768870984248,3.01720702,133.58,133.53,11.26884514]
[1768870985853,1.18033558,133.57,133.53,11.26884514]
[1768870987252,1.18033558,133.57,133.53,8.25163812]
[1768870987548,1.18033558,133.57,133.53,11.26884514]
[1768870989754,1.18033558,133.57,133.53,8.25163812]
[1768870989959,1.18033558,133.57,133.53,11.26884514]
[1768870993561,1.18033558,133.57,133.53,8.25163812]
[1768870993850,1.18033558,133.57,133.53,11.26884514]
[1768870995249,1.18033558,133.56,133.52,7.4893319]
[1768870995436,1.18033558,133.56,133.52,10.50653892]
[1768870995953,1.18033558,133.54,133.5,0.72681054]
[1768870996541,1.18033558,133.54,133.5,8.21712632]
[1768870997042,1.18033558,133.54,133.5,7.49031578]
[1768870997664,1.18033558,133.54,133.5,8.22557743]
[1768870999867,1.18033558,133.54,133.5,0.73526165]
[1768871000365,1.18033558,133.52,133.48,72.75634994]
[1768871000560,1.12033557,133.52,133.48,3.76478478]
[1768871000953,1.12033557,133.52,133.48,11.25650437]
[1768871000954,1.06033556,133.52,133.48,11.25650437]
[1768871001147,1.06033556,133.52,133.48,8.23929735]
[1768871001950,0.31155233,133.52,133.48,8.23929735]
[1768871002472,0.31155233,133.52,133.48,11.25650437]
[1768871003964,10.50677657,133.52,133.47,4.12049699]
[1768871004168,10.50677657,133.52,133.47,1.10328997]
[1768871004169,1.15159162,133.5,133.47,1.10328997]
[1768871007564,1.09159159,133.5,133.47,1.10328997]
[1768871009277,1.09159159,133.5,133.47,11.61391979]
[1768871009581,17.55159162,133.55,133.49,1.10328997]
[1768871009758,1.15159162,133.53,133.49,1.10328997]
[1768871012756,1.15159162,133.53,133.49,8.59444755]
[1768871013077,1.15159162,133.53,133.49,11.61280347]
[1768871013571,1.15159162,133.53,133.49,8.59444755]
[1768871014972,8.64064821,133.53,133.49,1.10328997]
[1768871015153,1.15159162,133.52,133.49,1.10328997]
[1768871016475,1.15159162,133.52,133.48,1.10328997]
[1768871016692,1.15159162,133.5,133.47,8.59542012]
[1768871018560,1.15159162,133.5,133.47,1.10328997]
[1768871018881,1.15159162,133.48,133.45,1.10328997]
[1768871021572,1.15159162,133.48,133.44,7.69387649]
[1768871021573,1.15159162,133.47,133.44,8.79716646]
[1768871022281,1.04158256,133.47,133.44,8.79716646]
[1768871022465,3.01835592,133.48,133.44,8.79716646]
[1768871022667,2.95835593,133.48,133.45,1.3145549]
[1768871023283,10.50978423,133.49,133.45,1.3145549]
[1768871024384,1.26635518,133.48,133.45,1.3145549]
[1768871025286,1.26635518,133.48,133.45,8.80798792]
[1768871025488,1.26635518,133.49,133.46,1.3145549]
[1768871027287,1.26635518,133.53,133.48,4.33291082]
[1768871027592,1.26635518,133.53,133.5,1.3145549]
[1768871032774,1.26635518,133.52,133.49,1.3145549]
[1768871033886,1.26635518,133.52,133.48,11.91688698]
[1768871035687,1.39709508,133.5,133.47,1.40701632]
[1768871035867,1.39709508,133.5,133.47,8.89928594]
[1768871036190,1.39709508,133.5,133.47,11.91764186]
[1768871037582,1.33709509,133.5,133.47,11.91764186]
[1768871038094,26.20986158,133.54,133.49,1.40701632]
[1768871038280,10.50674891,133.54,133.49,1.40701632]
[1768871038479,10.50674891,133.54,133.49,4.42537224]
[1768871039295,10.50674891,133.54,133.49,1.40701632]
[1768871039501,1.39709508,133.53,133.49,8.89811357]
[1768871040196,4.415451,133.53,133.49,8.89811357]
[1768871040712,1.39709508,133.53,133.49,11.91646949]
[1768871042993,1.39709508,133.53,133.49,8.89811357]
[1768871043192,1.39709508,133.53,133.49,11.91646949]
[1768871044694,8.88550723,133.54,133.5,1.40701632]
[1768871044892,7.48841215,133.54,133.5,1.40701632]
[1768871045095,1.39709508,133.53,133.5,1.40701632]
[1768871046996,8.88550723,133.54,133.51,1.40701632]
[1768871047197,8.88516202,133.55,133.51,1.40701632]
[1768871048400,1.39709508,133.54,133.51,1.40701632]
[1768871049302,1.39709508,133.54,133.51,4.42537224]
[1768871052204,1.39709508,133.53,133.49,11.91646949]
[1768871053195,1.39709508,133.53,133.49,10.50945317]
[1768871053586,1.39709508,133.53,133.49,11.91646949]
[1768871054907,1.39709508,133.53,133.49,4.42537224]
[1768871055096,1.39709508,133.52,133.49,1.40701632]
[1768871055403,1.39709508,133.52,133.48,4.42537224]
[1768871055610,1.39709508,133.51,133.47,11.91742183]
[1768871055906,1.39709508,133.5,133.46,8.89976042]
[1768871056207,1.33709509,133.5,133.46,8.89976042]
[1768871056711,1.33709509,133.5,133.46,11.91811634]
[1768871059815,1.2770951,133.5,133.47,3.01835592]
[1768871060316,1.21709511,133.5,133.47,3.01835592]
[1768871060903,1.21709511,133.5,133.46,8.89976042]
[1768871061217,19.41835592,133.53,133.49,1.40701632]
[1768871061713,16.4,133.53,133.5,4.42537224]
[1768871061918,3.01835592,133.55,133.5,4.42537224]
[1768871062314,1.39709508,133.54,133.5,3.01835592]
[1768871062522,1.39709508,133.54,133.51,1.40701632]
[1768871063003,1.39709508,133.54,133.5,3.01835592]
[1768871063209,1.39709508,133.54,133.5,4.46391216]
[1768871063516,1.40288625,133.53,133.5,4.46391216]
[1768871063710,1.40288625,133.53,133.5,1.44555624]
[1768871063912,1.40288625,133.53,133.48,11.95540337]
[1768871064114,1.40288625,133.52,133.48,11.95540337]
[1768871064827,1.40288625,133.51,133.47,8.93771178]
[1768871066301,1.40288625,133.51,133.47,11.95589444]
[1768871066922,1.40288625,133.51,133.47,8.93771178]
[1768871068325,1.40288625,133.5,133.46,8.9384029]
[1768871068503,1.40288625,133.5,133.46,11.95658556]
[1768871069117,1.40288625,133.5,133.47,1.44555624]
[1768871069615,1.40288625,133.5,133.46,10.51102932]
[1768871069820,1.40288625,133.49,133.44,4.6637389]
[1768871070209,1.40288625,133.49,133.45,7.49342076]
[1768871071914,1.40288625,133.48,133.45,7.49342076]
[1768871072113,1.34288626,133.48,133.45,7.49342076]
[1768871073630,1.34288626,133.48,133.45,8.938977]
[1768871074227,1.2828862,133.48,133.45,11.95715966]
[1768871074526,1.22288619,133.48,133.45,11.95715966]
[1768871075326,3.01818266,133.51,133.46,3.01818266]
[1768871075534,16.4,133.53,133.47,1.44555624]
[1768871075713,3.01818266,133.52,133.47,1.44555624]
[1768871076534,1.40288625,133.51,133.47,4.4637389]
[1768871076927,1.40288625,133.51,133.47,3.01818266]
[1768871077120,1.40288625,133.51,133.48,1.44555624]
[1768871081939,103.58544141,133.54,133.5,1.51542889]
[1768871082128,3.01818266,133.56,133.51,1.51542889]
[1768871082441,1.48544141,133.55,133.51,1.51542889]
[1768871082937,1.48544141,133.55,133.52,1.51542889]
[1768871083339,1.48544141,133.56,133.52,1.51542889]
[1768871083839,1.48544141,133.56,133.53,1.51542889]
[1768871084621,3.01818266,133.58,133.54,1.51542889]
[1768871084622,1.48544141,133.58,133.54,1.51542889]
[1768871084941,1.48544141,133.59,133.55,1.51542889]
[1768871085126,1.48544141,133.59,133.56,1.51542889]
[1768871085532,1.48544141,133.6,133.56,4.53361155]
[1768871085736,1.48544141,133.6,133.57,4.53361155]
[1768871085933,8.96971487,133.62,133.58,1.51542889]
[1768871086848,1.48544141,133.62,133.58,4.53361155]
[1768871087058,1.48544141,133.62,133.58,1.51542889]
[1768871088327,8.96899118,133.63,133.59,4.53361155]
[1768871088640,1.48544141,133.63,133.59,1.51542889]
[1768871089039,1.48544141,133.63,133.59,4.53361155]
[1768871091649,1.48544141,133.62,133.59,1.51542889]
[1768871092645,1.48544141,133.62,133.59,4.53361155]
[1768871093441,1.54864056,133.61,133.58,1.56035578]
[1768871093628,1.54864056,133.61,133.58,4.57853844]
[1768871094121,1.54864056,133.63,133.6,4.57853844]
[1768871096539,1.54864056,133.63,133.6,1.56035578]
[1768871096739,1.54864056,133.63,133.6,4.57853844]
[1768871097438,1.54864056,133.63,133.6,1.56035578]
[1768871097633,1.54864056,133.63,133.6,4.57853844]
[1768871100443,0.2,133.64,133.62,1.56035578]
[1768871100628,1.74864056,133.66,133.63,4.57853844]
[1768871100825,0.2,133.68,133.66,1.56035578]
[1768871101049,1.74864056,133.71,133.67,4.57853844]
[1768871101262,9.22763802,133.71,133.67,4.57853844]
[1768871101567,1.74864056,133.71,133.68,3.01818266]
[1768871101728,1.74864056,133.71,133.69,3.01818266]
[1768871101729,0.2,133.71,133.69,3.01818266]